bitfinex/quotes_ETHUSD_20220115
["timestamp","ask_amount","ask_price","bid_price","bid_amount"]
[1642244764428,0.045463,3324.0,3323.8,1.63355995]
[1642244765674,0.38079863,3323.9,3323.8,1.63355995]
[1642244766877,1.4157564,3323.9,3323.8,1.63355995]
[1642244768922,1.4612194,3323.9,3323.8,1.63355995]
[1642244772071,1.4157564,3323.9,3323.8,1.63355995]
[1642244772870,0.045463,3324.0,3323.8,1.63355995]
[1642244773269,3.0,3324.1,3323.8,1.63355995]
[1642244773469,3.045463,3324.1,3323.8,1.63355995]
[1642244774070,3.045463,3324.1,3323.8,2.77292792]
[1642244775071,3.045463,3324.1,3323.8,1.63355995]
[1642244775924,0.045463,3324.0,3323.8,1.63355995]
[1642244776419,3.0,3324.1,3323.8,1.63355995]
[1642244776619,0.045463,3324.0,3323.8,1.63355995]
[1642244777021,3.0,3324.1,3323.8,1.63355995]
[1642244777022,0.045463,3323.9,3323.8,1.63355995]
[1642244777421,3.0,3324.1,3323.8,1.63355995]
[1642244777621,3.045463,3324.1,3323.8,1.63355995]
[1642244777824,2.28939476,3324.0,3323.8,1.63355995]
[1642244778022,2.33485776,3324.0,3323.8,1.63355995]
[1642244778923,2.28939476,3324.0,3323.8,1.63355995]
[1642244779221,2.28939476,3323.9,3323.8,1.63355995]
[1642244779873,2.33485776,3323.9,3323.8,1.63355995]
[1642244780272,2.28939476,3323.9,3323.8,1.63355995]
[1642244781275,2.33485776,3324.0,3323.8,1.63355995]
[1642244781771,2.33485776,3324.0,3323.8,1.58355995]
[1642244781972,2.28939476,3323.9,3323.8,1.58355995]
[1642244782774,2.28939476,3323.9,3323.8,2.33566425]
[1642244783176,2.33485776,3324.0,3323.8,2.33566425]
[1642244784021,1.52777665,3323.9,3323.8,2.33566425]
[1642244785028,1.57323965,3324.0,3323.8,2.33566425]
[1642244785224,1.52777665,3324.0,3323.8,2.33566425]
[1642244786024,0.045463,3324.0,3323.8,2.33566425]
[1642244786825,1.52777665,3323.9,3323.8,2.33566425]
[1642244787474,1.52777665,3323.9,3323.8,4.54468687]
[1642244787677,1.57323965,3324.0,3323.8,4.54468687]
[1642244787872,1.57323965,3324.0,3323.9,2.11052676]
[1642244788072,1.52777665,3324.0,3323.9,2.11052676]
[1642244789679,1.52777665,3324.0,3323.8,1.58355995]
[1642244789876,1.57323965,3324.0,3323.8,1.58355995]
[1642244790826,1.52777665,3323.9,3323.8,1.58355995]
[1642244791420,1.57323965,3323.9,3323.8,1.58355995]
[1642244791820,1.52777665,3323.9,3323.8,1.58355995]
[1642244792221,0.045463,3323.9,3323.8,1.58355995]
[1642244792620,2.28939476,3324.0,3323.8,1.58355995]
[1642244793024,0.50134804,3323.9,3323.8,1.58355995]
[1642244793823,2.02799981,3323.9,3323.8,1.58355995]
[1642244794223,2.07346281,3323.9,3323.8,1.58355995]
[1642244794671,0.54681104,3323.9,3323.8,1.58355995]
[1642244797173,2.7907428,3323.9,3323.8,1.58355995]
[1642244797574,2.8362058,3323.9,3323.8,1.58355995]
[1642244797775,0.54681104,3323.9,3323.8,1.58355995]
[1642244800225,0.50134804,3323.9,3323.8,1.58355995]
[1642244800428,0.54681104,3323.9,3323.8,1.58355995]
[1642244801128,3.24681104,3323.9,3323.8,0.46599012]
[1642244802073,3.59332053,3323.9,3323.8,0.46599012]
[1642244802773,3.09197249,3323.9,3323.8,0.46599012]
[1642244803576,3.59332053,3323.9,3323.8,0.46599012]
[1642244805574,0.54681104,3323.9,3323.8,0.46599012]
[1642244806023,0.50134804,3323.9,3323.8,0.46599012]
[1642244806622,3.59370853,3323.9,3323.8,0.46599012]
[1642244807222,3.54824553,3323.9,3323.8,0.46599012]
[1642244807522,2.83313754,3323.9,3323.8,0.46599012]
[1642244807923,2.78767454,3323.9,3323.8,0.46599012]
[1642244808324,2.83313754,3323.9,3323.8,0.46599012]
[1642244809126,0.54681104,3323.9,3323.8,0.46599012]
[1642244810574,2.8697808,3323.9,3323.8,0.46599012]
[1642244810775,2.88076104,3323.9,3323.8,0.46599012]
[1642244810974,2.88721324,3323.9,3323.8,0.46599012]
[1642244811775,0.54681104,3323.9,3323.8,0.46599012]
[1642244812176,3.59370853,3323.9,3323.8,0.46599012]
[1642244813076,0.54681104,3323.9,3323.8,0.46599012]
[1642244813521,2.87763666,3323.9,3323.8,0.46599012]
[1642244815124,0.54681104,3323.9,3323.8,0.46599012]
[1642244815724,2.89546472,3323.9,3323.8,0.46599012]
[1642244816026,5.94236221,3323.9,3323.8,0.46599012]
[1642244816225,5.89689921,3323.9,3323.8,0.46599012]
[1642244816431,3.59370853,3323.9,3323.8,0.46599012]
[1642244816826,3.59370853,3323.9,3323.8,0.13693633]
[1642244817678,0.54681104,3323.9,3323.8,0.13693633]
[1642244817877,2.87659351,3323.9,3323.8,0.13693633]
[1642244818773,0.54681104,3323.9,3323.8,0.13693633]
[1642244819376,5.06786605,3323.9,3323.8,0.13693633]
[1642244819875,2.86786605,3323.9,3323.8,0.13693633]
[1642244820276,0.54681104,3323.9,3323.8,0.13693633]
[1642244820675,2.87865622,3323.9,3323.8,0.13693633]
[1642244822925,0.54681104,3323.9,3323.8,0.13693633]
[1642244824773,2.94371331,3323.9,3323.8,0.13693633]
[1642244824973,0.54681104,3323.9,3323.8,0.13693633]
[1642244826374,0.50134804,3323.9,3323.8,0.13693633]
[1642244826976,0.54681104,3323.9,3323.8,0.13693633]
[1642244827576,0.50134804,3323.9,3323.8,0.13693633]
[1642244827776,0.54681104,3323.9,3323.8,0.13693633]
[1642244829327,0.045463,3323.9,3323.8,0.13693633]
[1642244829624,2.77877147,3324.0,3323.8,0.13693633]
[1642244829823,3.195463,3323.9,3323.8,0.13693633]
[1642244830223,5.47288643,3323.9,3323.8,0.13693633]
[1642244831324,5.97423447,3323.9,3323.8,0.13693633]
[1642244831725,2.82423447,3323.9,3323.8,0.13693633]
[1642244832172,2.82423447,3323.9,3323.8,0.03772569]
[1642244833172,0.54681104,3323.9,3323.8,0.03772569]
[1642244833374,0.045463,3323.9,3323.8,0.03772569]
[1642244833973,4.045463,3323.9,3323.8,0.03772569]
[1642244834173,4.54681104,3323.9,3323.8,0.03772569]
[1642244834373,0.54681104,3323.9,3323.8,0.03772569]
[1642244835375,0.54681104,3323.9,3323.3,1.9496]
[1642244835376,2.7,3323.8,3323.3,1.9496]
[1642244835576,0.045463,3323.7,3323.3,1.9496]
[1642244835837,0.045463,3323.7,3323.4,0.00341054]
[1642244836428,2.7,3323.8,3323.4,0.00341054]
[1642244836629,0.50134804,3323.6,3323.3,1.90301054]
[1642244837030,0.54681104,3323.6,3323.3,1.90301054]
[1642244837430,2.2851312,3323.4,3323.3,1.90301054]
[1642244838030,3.69576368,3323.4,3323.3,0.79008307]
[1642244838230,3.74122668,3323.4,3323.3,0.79008307]
[1642244838832,3.69576368,3323.4,3323.3,0.79008307]
[1642244839230,1.41063248,3323.4,3323.3,0.79008307]
[1642244839433,1.91198052,3323.4,3323.3,0.79008307]
[1642244839881,4.19725924,3323.4,3323.3,0.79008307]
[1642244840277,4.24272224,3323.4,3322.9,9.9093]
[1642244840477,4.24272224,3323.4,3322.9,6.21]
[1642244840679,4.19725924,3323.4,3323.0,0.00227369]
[1642244841080,1.91198052,3323.4,3323.0,0.00227369]
[1642244841482,4.25,3323.1,3323.0,0.00227369]
[1642244842282,1.51830801,3323.2,3323.0,0.00227369]
[1642244842485,1.50785801,3323.2,3323.0,0.00227369]
[1642244843342,1.25389804,3323.3,3323.0,0.00227369]
[1642244843524,0.50134804,3323.1,3323.0,0.00227369]
[1642244843725,3.44338326,3323.1,3323.0,0.00227369]
[1642244844625,3.04666522,3323.1,3323.0,0.00227369]
[1642244844826,2.23615259,3323.1,3323.0,0.00227369]
[1642244845030,2.15617259,3323.1,3323.0,0.00227369]
[1642244845828,2.15617259,3323.1,3322.6,0.00454739]
[1642244846027,2.4,3323.0,3322.5,1.55805919]
[1642244846429,0.00170527,3322.9,3322.5,1.55805919]
[1642244846929,0.00113685,3322.8,3322.5,1.55805919]
[1642244847186,1.45207145,3322.7,3322.5,1.55805919]
[1642244847986,1.45207145,3322.7,3322.5,2.31047949]
[1642244848585,1.45207145,3322.7,3322.5,1.55805919]
[1642244849287,1.45207145,3322.7,3322.5,3.18733249]
[1642244849485,1.45207145,3322.7,3322.5,1.55805919]
[1642244849889,1.45207145,3322.7,3322.6,4.11134872]
[1642244850092,1.45207145,3322.7,3322.6,10.13074872]
[1642244850290,1.45207145,3322.7,3322.6,10.91874872]
[1642244851132,1.45207145,3322.7,3322.6,11.67102872]
[1642244851331,1.45207145,3322.7,3322.6,10.05968]
[1642244851733,1.45207145,3322.7,3322.6,6.8074]
[1642244852135,1.45207145,3322.7,3322.6,6.0194]
[1642244860334,2.9685741,3322.7,3322.6,6.0194]
[1642244861027,1.45207145,3322.7,3322.6,6.0194]
[1642244863275,2.9685741,3322.7,3322.6,6.0194]
[1642244864177,2.06422698,3322.7,3322.6,6.0194]
[1642244864878,3.58072963,3322.7,3322.6,6.0194]
[1642244867825,2.06422698,3322.7,3322.6,6.0194]
[1642244868626,3.57906555,3322.7,3322.6,6.0194]
[1642244871876,2.06422698,3322.7,3322.6,6.0194]
[1642244877779,4.44193502,3322.7,3322.6,5.97612537]
[1642244878178,2.06422698,3322.7,3322.6,5.97612537]
[1642244878980,5.51422698,3322.7,3322.6,2.66879312]
[1642244879183,7.92869236,3322.7,3322.6,2.66879312]
[1642244879378,5.51422698,3322.7,3322.6,2.66879312]
[1642244880479,5.51422698,3322.7,3321.9,0.045463]
[1642244880480,5.55,3322.5,3321.9,0.045463]
[1642244880684,0.045463,3322.0,3321.6,6.21]
[1642244880928,0.6763,3322.0,3321.6,6.21]
[1642244881425,1.32262887,3321.9,3321.6,6.21]
[1642244882131,1.32262887,3321.9,3320.9,6.21]
[1642244882132,1.60591537,3321.9,3320.9,6.21]
[1642244882525,1.60591537,3321.9,3321.0,0.00909477]
[1642244882927,0.61215553,3321.8,3321.0,0.00909477]
[1642244884230,1.50328078,3321.7,3321.0,0.00909477]
[1642244884431,1.50328078,3321.7,3320.9,6.11909477]
[1642244884679,0.00341054,3321.6,3320.7,7.4106]
[1642244885079,0.00284211,3321.5,3320.8,0.00113685]
[1642244885280,1.4946122,3321.4,3320.8,0.00113685]
[1642244885482,1.4946122,3321.4,3320.8,1.50675685]
[1642244885483,1.49688589,3321.4,3320.8,1.50675685]
[1642244885682,0.00170527,3321.3,3320.8,1.50675685]
[1642244885882,0.00170527,3321.3,3320.8,0.75397685]
[1642244886084,1.4946122,3321.4,3320.8,0.75397685]
[1642244886085,0.00113684,3321.2,3320.8,0.75397685]
[1642244886287,0.00113684,3321.2,3320.8,2.66801456]
[1642244886482,0.6138608,3321.3,3320.8,2.66801456]
[1642244886883,0.00113684,3321.2,3320.9,0.752795]
[1642244887083,0.00113684,3321.2,3320.8,2.66801456]
[1642244887284,0.00113684,3321.2,3320.9,1.91403771]
[1642244888184,0.00113684,3321.2,3320.8,0.00113685]
[1642244890029,3.00113684,3321.2,3320.8,0.00113685]
[1642244890230,3.00113684,3321.2,3320.7,6.21]
[1642244890528,0.00170527,3321.1,3320.6,4.06097]
[1642244890930,0.00113685,3321.0,3320.6,4.06097]
[1642244891129,1.15366021,3320.9,3320.6,4.06097]
[1642244891330,1.15366021,3320.9,3320.4,2.29372]
[1642244891732,1.15366021,3320.9,3320.5,0.00170527]
[1642244892177,1.15366021,3320.9,3320.7,1.87606502]
[1642244893179,0.61215553,3320.8,3320.5,1.87777029]
[1642244893478,0.61215553,3320.8,3320.6,0.00113685]
[1642244894377,0.61215553,3320.8,3320.6,1.47587448]
[1642244894778,0.61215553,3320.8,3320.6,0.00113685]
[1642244895579,0.61215553,3320.8,3320.6,1.87720187]
[1642244897736,0.61215553,3320.8,3320.6,0.00113685]
[1642244899339,0.61215553,3320.8,3320.6,1.87720187]
[1642244900881,0.61215553,3320.8,3320.6,0.00113685]
[1642244901476,0.61215553,3320.8,3320.6,0.75401995]
[1642244901677,0.61215553,3320.8,3320.6,2.63008497]
[1642244902477,0.61215553,3320.8,3320.7,1.87606502]
[1642244905222,0.61215553,3320.8,3320.6,0.75401995]
[1642244905424,1.15366021,3320.9,3320.6,0.00113685]
[1642244905824,1.15366021,3320.9,3320.6,0.75400785]
[1642244907084,1.15366021,3320.9,3320.6,2.25964785]
[1642244908381,1.15366021,3320.9,3320.6,0.00113685]
[1642244909684,1.15366021,3320.9,3320.6,0.75402025]
[1642244911628,1.15366021,3320.9,3320.6,0.00113685]
[1642244916778,0.82402656,3320.8,3320.6,0.00113685]
[1642244919943,1.15366021,3320.9,3320.6,0.00113685]
[1642244921540,0.80161929,3320.8,3320.6,0.00113685]
[1642244934832,0.80161929,3320.8,3320.6,1.67506997]
[1642244935033,0.80161929,3320.8,3320.6,3.18071597]
[1642244935542,0.80161929,3320.8,3320.6,3.93354597]
[1642244935832,0.80161929,3320.8,3320.7,1.67393312]
[1642244936833,0.80161929,3320.8,3320.6,0.00113685]
[1642244950439,2.945463,3320.7,3320.6,0.00113685]
[1642244950641,0.045463,3320.7,3320.6,0.00113685]
[1642244951644,0.84708229,3320.7,3320.6,0.00113685]
[1642244952281,0.045463,3320.7,3320.6,0.00113685]
[1642244953084,0.84708229,3320.7,3320.6,0.00113685]
[1642244953689,0.045463,3320.7,3320.6,0.00113685]
[1642244954088,0.84708229,3320.7,3320.6,0.00113685]
[1642244954686,0.80161929,3320.8,3320.6,0.00113685]
[1642244957130,1.50328078,3320.7,3320.6,0.00113685]
[1642244964238,2.30490007,3320.8,3320.6,0.00113685]
[1642244967396,1.50328078,3320.7,3320.6,0.00113685]
[1642244968795,2.30490007,3320.8,3320.6,0.00113685]
[1642244969399,2.30221987,3320.8,3320.6,0.00113685]
[1642244970698,1.50328078,3320.7,3320.6,0.00113685]
[1642244975787,0.79893909,3320.8,3320.6,0.00113685]
[1642244977189,3.05479011,3320.8,3320.6,0.00113685]
[1642244979037,0.79893909,3320.8,3320.6,0.00113685]
[1642244979839,2.25585102,3320.8,3320.6,0.00113685]
[1642244981638,2.30131402,3320.8,3320.6,0.00113685]
[1642244983987,2.25585102,3320.7,3320.6,0.00113685]
[1642244984587,0.045463,3320.8,3320.6,0.00113685]
[1642244985488,3.05879174,3320.8,3320.6,0.00113685]
[1642244985690,4.62055554,3320.7,3320.6,0.00113685]
[1642244986154,2.37055554,3320.7,3320.6,0.00113685]
[1642244986351,2.26019874,3320.7,3320.6,0.00113685]
[1642244987151,0.798593,3320.8,3320.6,0.00113685]
[1642244987152,2.30566174,3320.8,3320.6,0.00113685]
[1642244988853,2.26019874,3320.7,3320.6,0.00113685]
[1642244989691,3.32921171,3320.7,3320.6,0.00113685]
[1642244990294,4.21019874,3320.7,3320.6,8.403e-05]
[1642244991090,6.58095483,3320.7,3320.6,8.403e-05]
[1642244991490,0.75317,3320.6,3320.2,0.00235772]
[1642244991689,2.36270276,3320.5,3320.2,0.00235772]
[1642244991891,0.045463,3320.3,3320.2,0.00235772]
[1642244992590,0.75317,3320.6,3320.2,0.00235772]
[1642244992795,0.045463,3320.4,3320.2,0.00235772]
[1642244992991,0.045463,3320.3,3320.2,0.00235772]
[1642244994040,0.045463,3320.4,3320.2,0.00235772]
[1642244994642,1.4252011,3320.3,3320.2,0.00235772]
[1642245000497,4.4252011,3320.3,3320.2,0.00235772]
[1642245002740,4.4706641,3320.3,3320.2,0.00235772]
[1642245005488,5.53967707,3320.3,3320.2,0.00235772]
[1642245005689,5.49421407,3320.3,3320.2,0.00235772]
[1642245007790,5.49421407,3320.3,3320.2,1.4265043]
[1642245008344,7.00379449,3320.3,3320.2,0.00235772]
[1642245009240,7.00379449,3320.3,3320.2,1.4265043]
[1642245010039,5.49421407,3320.3,3320.2,1.4265043]
[1642245014509,5.53967707,3320.3,3320.2,1.4265043]
[1642245014710,5.53967707,3320.3,3320.2,0.00235772]
[1642245015710,5.49421407,3320.3,3320.2,0.00235772]
[1642245015943,5.53967707,3320.3,3320.2,0.00235772]
[1642245016146,5.53967707,3320.3,3320.1,0.05005]
[1642245016147,5.53967707,3320.3,3320.1,0.00240772]
[1642245016937,5.49421407,3320.3,3320.1,0.00240772]
[1642245017338,2.345463,3320.2,3320.1,0.00240772]
[1642245017740,1.11447597,3320.2,3320.1,0.00240772]
[1642245018238,1.06901297,3320.2,3320.1,0.00240772]
[1642245020285,2.58190814,3320.2,3320.1,0.00240772]
[1642245021789,1.06901297,3320.2,3320.1,0.00240772]
[1642245022388,2.58172701,3320.2,3320.1,0.00240772]
[1642245023437,1.06901297,3320.2,3320.1,0.00240772]
[1642245024437,2.58168064,3320.2,3320.1,0.00240772]
[1642245025839,1.06901297,3320.2,3320.1,0.00240772]
[1642245027189,2.58193847,3320.2,3320.1,0.00240772]
[1642245028390,1.06901297,3320.2,3320.1,0.00240772]
[1642245029789,1.06901297,3320.2,3320.1,1.3506353]
[1642245030591,1.06901297,3320.2,3320.1,0.00240772]
[1642245032746,1.06901297,3320.2,3320.1,1.3506353]
[1642245036185,1.11447597,3320.2,3320.1,1.3506353]
[1642245036586,1.06901297,3320.2,3320.1,1.3506353]
[1642245040241,1.06901297,3320.2,3320.1,3.3779533]
[1642245040641,1.06901297,3320.2,3320.1,1.3506353]
[1642245041750,2.5829211,3320.2,3320.1,1.3506353]
[1642245042395,2.5829211,3320.2,3320.1,0.00240772]
[1642245043095,2.6283841,3320.2,3320.1,0.00240772]
[1642245043695,1.11447597,3320.2,3320.1,0.00240772]
[1642245043896,1.06901297,3320.2,3320.1,0.00240772]
[1642245046440,2.55989291,3320.2,3320.1,0.00240772]
[1642245047245,1.04841861,3320.2,3320.1,0.00240772]
[1642245048240,2.5602227,3320.2,3320.1,0.00240772]
[1642245048843,1.04841861,3320.2,3320.1,0.00240772]
[1642245050587,2.55857715,3320.2,3320.1,0.00240772]
[1642245052188,1.04841861,3320.2,3320.1,2.13003483]
[1642245052393,1.04841861,3320.2,3320.1,0.00240772]
[1642245057394,2.55857715,3320.2,3320.1,0.00240772]
[1642245058493,1.04841861,3320.2,3320.1,0.00240772]
[1642245061138,2.56052452,3320.2,3320.1,0.00240772]
[1642245062437,1.04841861,3320.2,3320.1,0.00240772]
[1642245070039,1.04841861,3320.2,3320.1,0.75533772]
[1642245070440,1.04841861,3320.2,3320.1,2.46303408]
[1642245071040,1.04841861,3320.2,3320.1,1.94656776]
[1642245072994,1.04841861,3320.2,3320.1,0.75533772]
[1642245076748,1.04841861,3320.2,3320.1,0.00240772]
[1642245079701,1.04841861,3320.2,3320.1,1.71075022]
[1642245079899,1.04841861,3320.2,3320.1,2.49031547]
[1642245080103,1.04841861,3320.2,3320.1,8.59057337]
[1642245080301,1.04841861,3320.2,3320.1,9.74015866]
[1642245081703,1.04841861,3320.2,3320.1,9.66370076]
[1642245083745,1.04841861,3320.2,3320.1,8.51411547]
[1642245085142,1.04841861,3320.2,3320.1,6.81420772]
[1642245085343,1.04841861,3320.2,3320.1,8.8294005]
[1642245087393,1.04841861,3320.2,3320.1,9.96930729]
[1642245091145,1.04841861,3320.2,3320.1,13.46930729]
[1642245091342,1.04841861,3320.2,3320.1,16.96930729]
[1642245091546,1.04841861,3320.2,3320.1,13.46930729]
[1642245091946,1.04841861,3320.2,3320.1,11.45411451]
[1642245092343,1.04841861,3320.2,3320.1,10.66611451]
[1642245092644,1.04841861,3320.2,3320.1,7.16611451]
[1642245093044,1.04841861,3320.2,3320.1,6.02620772]
[1642245094244,1.04841861,3320.2,3320.1,8.09383137]
[1642245094897,1.04841861,3320.2,3320.1,6.02620772]
[1642245095499,1.04841861,3320.2,3320.1,7.12377345]
[1642245095799,1.04841861,3320.2,3320.1,9.15761013]
[1642245096198,1.04841861,3320.2,3320.1,7.12377345]
[1642245098202,1.04841861,3320.2,3320.1,9.14779561]
[1642245099043,1.04841861,3320.2,3320.1,7.12377345]
[1642245100046,1.04841861,3320.2,3320.1,9.1827381]
[1642245100443,1.04841861,3320.2,3320.1,9.9707381]
[1642245101045,1.04841861,3320.2,3320.1,7.91177345]
[1642245101244,1.04841861,3320.2,3320.1,7.12377345]
[1642245101850,1.04841861,3320.2,3320.1,9.15207612]
[1642245102694,1.04841861,3320.2,3320.1,7.12377345]
[1642245104794,1.04841861,3320.2,3320.1,9.1646135]
[1642245104994,1.04841861,3320.2,3320.1,9.18510991]
[1642245105396,1.04841861,3320.2,3320.1,7.12377345]
[1642245106039,1.04841861,3320.2,3320.1,7.91177345]
[1642245106447,1.04841861,3320.2,3320.1,14.91177345]
[1642245106641,1.04841861,3320.2,3320.1,7.91177345]
[1642245107842,1.04841861,3320.2,3320.1,10.18222066]
[1642245109700,1.51346698,3320.5,3320.3,3.65]
[1642245109896,1.51346698,3320.5,3320.4,10.83241317]
[1642245110093,1.51346698,3320.5,3320.4,11.62041317]
[1642245110295,2.26437063,3320.8,3320.5,3.45]
[1642245110594,2.26437063,3320.8,3320.7,1.24602986]
[1642245110895,2.26778117,3320.8,3320.7,9.38562569]
[1642245111494,0.00341054,3320.8,3320.7,7.26882986]
[1642245112695,3.04887354,3320.8,3320.7,7.26882986]
[1642245112895,3.00341054,3320.8,3320.7,7.26882986]
[1642245113096,3.00341054,3320.8,3320.7,9.29250304]
[1642245113348,3.00341054,3320.8,3320.7,9.29427102]
[1642245113552,3.00341054,3320.8,3320.7,7.26882986]
[1642245113951,3.00341054,3320.8,3320.7,9.29739323]
[1642245114150,3.00341054,3320.8,3320.7,9.29248575]
[1642245114351,3.00341054,3320.8,3320.7,7.26394986]
[1642245115153,3.04887354,3320.8,3320.7,7.26394986]
[1642245115555,3.00341054,3320.8,3320.7,7.26394986]
[1642245117599,3.00341054,3320.8,3320.7,9.30957451]
[1642245122346,3.00341054,3320.8,3320.7,10.06224451]
[1642245123048,1.5181457,3320.9,3320.8,2.85]
[1642245123248,1.50162034,3320.9,3320.8,5.14844678]
[1642245123647,2.26437063,3321.2,3320.8,2.29844678]
[1642245123848,5.97147063,3321.3,3321.0,0.75266]
[1642245124147,0.00170527,3321.1,3321.0,0.75266]
[1642245124793,0.04716827,3321.1,3321.0,0.75266]
[1642245124993,0.00170527,3321.1,3321.0,0.75266]
[1642245126494,0.00170527,3321.1,3320.9,1.5053243]
[1642245126694,0.00170527,3321.1,3320.9,2.2580943]
[1642245126893,0.00113685,3321.0,3320.9,1.5054243]
[1642245127096,0.04659985,3321.0,3320.9,0.75277]
[1642245127292,0.00113685,3321.0,3320.9,0.75277]
[1642245127495,0.04659985,3321.0,3320.9,0.75277]
[1642245127998,0.00113685,3321.0,3320.8,3.0106386]
[1642245129449,0.00113685,3321.0,3320.9,2.83276819]
[1642245129849,1.45444858,3321.0,3320.9,2.83276819]
[1642245130750,0.00113685,3321.0,3320.9,3.90561705]
[1642245131850,0.04659985,3321.0,3320.9,1.82556886]
[1642245132294,0.00113685,3321.0,3320.9,1.82556886]
[1642245132494,0.04659985,3321.0,3320.9,1.82556886]
[1642245132694,3.04659985,3321.0,3320.9,1.82556886]
[1642245133099,4.56599588,3321.0,3320.9,1.82556886]
[1642245133294,4.52053288,3321.0,3320.9,1.82556886]
[1642245133696,5.97384461,3321.0,3320.9,1.07284886]
[1642245133896,6.01930761,3321.0,3320.9,1.07284886]
[1642245134097,4.49991158,3321.0,3320.8,3.0106386]
[1642245134899,2.97262858,3320.9,3320.8,3.0106386]
[1642245135702,2.97262858,3320.9,3320.8,4.08066587]
[1642245137842,2.97262858,3320.9,3320.8,6.86329378]
[1642245138547,2.97262858,3320.9,3320.8,4.83337587]
[1642245138745,1.45331173,3320.9,3320.8,4.83337587]
[1642245139606,1.49877473,3320.9,3320.8,4.83337587]
[1642245139793,1.49877473,3320.9,3320.8,2.57535727]
[1642245140392,3.01809158,3320.9,3320.8,2.57535727]
[1642245141195,3.01809158,3320.9,3320.8,5.39014026]
[1642245141794,3.01809158,3320.9,3320.8,3.32807727]
[1642245143096,2.97262858,3320.9,3320.8,3.32807727]
[1642245143346,1.45331173,3320.9,3320.8,5.37579523]
[1642245146053,2.97262858,3320.9,3320.8,5.37579523]
[1642245146849,1.45331173,3320.9,3320.8,5.37579523]
[1642245147394,1.45331173,3320.9,3320.8,6.24025313]
[1642245147793,2.26437063,3321.4,3321.0,3.8026]
[1642245147993,2.26437063,3321.4,3321.3,4.61463152]
[1642245148192,2.26437063,3321.4,3321.3,2.36463152]
[1642245148394,2.26437063,3321.4,3321.3,3.15263152]
[1642245148793,2.26437063,3321.4,3321.3,9.17433152]
[1642245149795,2.26437063,3321.7,3321.3,9.17433152]
[1642245150094,0.00341054,3321.6,3321.5,0.75257]
[1642245151146,0.00341054,3321.6,3321.5,2.81057044]
[1642245152346,3.04666522,3321.9,3321.6,3.95]
[1642245152545,3.04666522,3321.9,3321.8,4.45246]
[1642245152750,3.04666522,3321.9,3321.8,12.89274316]
[1642245152949,3.04666522,3321.9,3321.8,6.77326]
[1642245153551,6.04666522,3321.9,3321.8,6.77326]
[1642245154350,3.0,3321.9,3321.8,6.77326]
[1642245154606,3.04666522,3322.3,3322.1,0.75235]
[1642245154797,3.04666522,3322.3,3322.2,6.0201]
[1642245155600,3.04666522,3322.3,3322.2,7.11156928]
[1642245155801,3.04666522,3322.4,3322.2,7.11156928]
[1642245156201,5.6,3322.3,3322.0,2.2570447]
[1642245156406,3.04666522,3322.4,3321.6,0.788]
[1642245156601,0.00341054,3322.2,3321.6,0.788]
[1642245156801,0.00397896,3322.3,3321.7,6.0205]
[1642245157002,0.00284211,3322.1,3321.7,6.0205]
[1642245157201,4.3923839,3321.8,3321.7,6.0205]
[1642245157400,1.1923839,3321.8,3321.7,6.0205]
[1642245157602,1.19352074,3321.8,3321.7,6.0205]
[1642245157801,5.44352074,3321.8,3321.7,0.4863]
[1642245158000,3.6,3321.7,3321.2,1.24509865]
[1642245158451,2.44553093,3321.6,3321.3,0.00170527]
[1642245159653,3.04153931,3321.6,3321.3,0.00170527]
[1642245160056,2.4919752,3321.5,3321.3,0.00170527]
[1642245160455,3.04153931,3321.6,3320.8,0.00454739]
[1642245160655,3.04153931,3321.6,3320.3,0.00738951]
[1642245160855,0.35064743,3321.2,3320.3,0.00738951]
[1642245161060,1.21568519,3320.8,3320.3,0.00738951]
[1642245161256,1.21568519,3320.8,3320.6,1.25460474]
[1642245161456,1.71284674,3321.2,3320.6,1.25460474]
[1642245161659,0.35064743,3321.2,3320.7,0.00511581]
[1642245161857,2.27621784,3320.9,3320.7,0.00511581]
[1642245163116,2.27621784,3320.9,3320.7,0.75793581]
[1642245163517,2.27621784,3320.9,3320.8,0.00454739]
[1642245163918,2.27621784,3320.9,3320.8,0.79254739]
[1642245164118,2.27621784,3320.9,3320.8,0.00454739]
[1642245164324,2.27621784,3321.0,3320.8,0.00454739]
[1642245164718,2.27621784,3321.0,3320.7,0.00511581]
[1642245165420,2.27621784,3321.0,3320.7,0.75794341]
[1642245165847,2.27621784,3321.1,3320.8,0.00454739]
[1642245166047,2.27621784,3321.1,3320.8,0.75735739]
[1642245166447,2.27621784,3321.1,3320.9,0.00397897]
[1642245167047,2.27621784,3321.2,3320.9,0.00397897]
[1642245167449,2.27621784,3321.2,3321.0,0.7527705]
[1642245167649,2.27621784,3321.2,3321.1,1.46325817]
[1642245167851,2.27621784,3321.2,3321.1,1.46610029]
[1642245171321,4.38428055,3321.4,3321.1,1.46610029]
[1642245171523,3.04153931,3321.3,3321.1,1.46610029]
[1642245171723,0.01476432,3321.2,3321.1,1.46325817]
[1642245172123,0.01476432,3321.2,3321.1,0.00284212]
[1642245172521,0.01476432,3321.2,3320.8,0.00454739]
[1642245172938,1.35750556,3321.2,3320.8,0.00454739]
[1642245173551,2.27859485,3321.1,3321.0,1.4857302]
[1642245174051,2.27859485,3321.1,3321.0,1.48914074]
[1642245174455,1.34274124,3321.1,3321.0,1.48914074]
[1642245174651,1.34274124,3321.1,3321.0,0.00341054]
[1642245175352,2.29335917,3321.2,3320.8,0.75735739]
[1642245175553,2.29335917,3321.2,3320.9,0.75676077]
[1642245175753,2.29335917,3321.2,3320.9,1.50953077]
[1642245176053,2.29335917,3321.2,3321.0,0.00341054]
[1642245176254,0.01476432,3321.2,3321.1,1.16685773]
[1642245176656,3.04153931,3321.3,3321.1,1.91958263]
[1642245176854,3.04153931,3321.3,3321.1,2.67231263]
[1642245177100,3.04153931,3321.4,3321.2,0.0022737]
[1642245178298,1.27925017,3321.8,3321.2,0.7549737]
[1642245178299,3.04153931,3321.5,3321.2,0.7549737]
[1642245178501,3.04153931,3321.5,3321.3,0.75266]
[1642245178697,3.04153931,3321.5,3321.3,1.50700967]
[1642245178899,3.04153931,3321.5,3321.4,0.04659985]
[1642245179098,3.04153931,3321.5,3321.4,1.55176985]
[1642245179500,3.04153931,3321.6,3321.4,1.55176985]
[1642245179903,4.4898484,3321.6,3321.4,1.55176985]
[1642245180502,4.4898484,3321.6,3321.4,0.04659985]
[1642245180703,1.44830909,3321.6,3321.4,0.04659985]
[1642245180954,1.44830909,3321.6,3321.4,0.00113685]
[1642245181152,0.00113684,3321.8,3321.4,0.00113685]
[1642245181450,3.04153931,3321.7,3321.4,0.00113685]
[1642245181650,3.04153931,3321.7,3321.5,1.50528]
[1642245182151,3.04267615,3321.8,3321.6,0.045463]
[1642245182354,3.04267615,3321.8,3321.7,1.50503]
[1642245182551,3.04267615,3321.8,3321.7,2.80868902]
[1642245183253,0.00113684,3321.8,3321.7,2.80868902]
[1642245185300,0.00113684,3321.8,3321.7,8.82958902]
[1642245186802,0.01596553,3321.8,3321.7,8.82958902]